[Event "WYCC 2018 O18"]
[Site "Halkidiki"]
[Date "2018.10.24"]
[Round "6"]
[White "Szustakowski, Antoni"]
[Black "Asllani, Muhamet"]
[Result "1-0"]
[ECO "A52"]
[WhiteElo "2319"]
[BlackElo "2148"]
[Annotator "NA"]
[PlyCount "57"]
[EventDate "2018.10.20"]
[EventType "swiss"]
[EventCountry "GRE"]
[SourceTitle "playchess.com"]
[Source "ChessBase"]
[SourceQuality "1"]
[TimeControl "40/5400+30:1800+30"]

1. d4 {[%emt 0:00:00]} Nf6 {[%emt 0:00:00]} 2. c4 {[%emt 0:00:00]} e5 {[%emt 0:00:00]} 3. dxe5 {[%emt 0:00:00]} Ng4 {[%emt 0:00:00]} 4. Bf4 {[%emt 0:00:00]} Nc6 {[%emt 0:00:54]} 5. Nf3 {[%emt 0:00:07]} Bb4+ {[%emt 0:00:57]} 6. Nc3 {[%emt 0:00:11]} Qe7 {[%emt 0:00:33]} 7. Qd5 {[%emt 0:00:13]} d6 {[%emt 0:01:18]} 8. exd6 {[%emt 0:03:13]} cxd6 {[%emt 0:01:00]} 9. a3 {[%emt 0:14:58]} Be6 {[%emt 0:01:02]} 10. Qd2 {[%emt 0:00:43]} Bc5 {[%emt 0:00:29]} 11. e3 {[%emt 0:00:18]} a5 {[%emt 0:07:03]} 12. Nd5 {[%emt 0:13:00]} Qd8 {[%emt 0:00:23]} 13. Qc3 {[%emt 0:04:41]} f6 {[%emt 0:01:49]} 14. Nd4 $18 {[%emt 0:04:43]} Bf7 {[%emt 0:03:57]} 15. Be2 {[%emt 0:02:16]} Nge5 {[%emt 0:00:09]} 16. O-O {[%emt 0:00:07]} O-O {[%emt 0:00:11]} 17. b4 {[%emt 0:03:53]} axb4 {[%emt 0:15:31]} 18. axb4 {[%emt 0:00:16]} Rxa1 {[%emt 0:00:06]} 19. Rxa1 {[%emt 0:00:06]} Bxd5 {[%emt 0:10:42]} 20. bxc5 {[%emt 0:03:12]} dxc5 {[%emt 0:07:08]} 21. cxd5 {[%emt 0:03:36]} cxd4 {[%emt 0:00:19]} 22. exd4 {[%emt 0:00:07]} Ng6 {[%emt 0:02:36]} 23. dxc6 {[%emt 0:01:38]} Nxf4 {[%emt 0:00:05]} 24. Bc4+ {[%emt 0:00:09]} Kh8 {[%emt 0:00:27]} 25. cxb7 {[%emt 0:00:33]} Qb6 {[%emt 0:02:03]} 26. Qb3 {[%emt 0:00:16]} Qc7 {[%emt 0:02:23]} 27. Ra8 {[%emt 0:00:10]} Rb8 {[%emt 0:00:12]} 28. Rxb8+ {[%emt 0:00:12]} Qxb8 {[%emt 0:00:16]} 29. Qa3 {[%emt 0:00:10]} 1-0

[Event "WYCC 2018 O18"]
[Site "Halkidiki"]
[Date "2018.10.24"]
[Round "6"]
[White "Szabo, Marton Mihaly"]
[Black "Veleshnja, Zino"]
[Result "1/2-1/2"]
[ECO "B51"]
[WhiteElo "2307"]
[BlackElo "2155"]
[Annotator "NA"]
[PlyCount "88"]
[EventDate "2018.10.20"]
[EventType "swiss"]
[EventCountry "GRE"]
[SourceTitle "playchess.com"]
[Source "ChessBase"]
[SourceQuality "1"]
[TimeControl "40/5400+30:1800+30"]

1. e4 {[%emt 0:00:00]} c5 {[%emt 0:00:00]} 2. Nf3 {[%emt 0:00:22]} d6 {[%emt 0:00:00]} 3. Bb5+ {[%emt 0:00:37]} Nd7 {[%emt 0:00:00]} 4. O-O {[%emt 0:00:28]} a6 {[%emt 0:00:00]} 5. Bd3 {[%emt 0:00:29] B51: Sicilian: Moscow Variation (3 Bb5+) without 3...Bd7} Ngf6 {[%emt 0:00:07]} 6. Re1 {[%emt 0:00:31]} e6 {[%emt 0:00:08]} 7. c3 {[%emt 0:00:14]} b5 {[%emt 0:00:08]} 8. Bc2 {[%emt 0:00:11]} c4 {[%emt 0:00:24]} 9. a4 {[%emt 0:00:13]} Bb7 {[%emt 0:00:13]} 10. d4 {[%emt 0:00:22]} Be7 $146 {[%emt 0:02:59]} ({Predecessor:} 10... cxd3 11. Qxd3 Nc5 12. Qe2 bxa4 {1-0 (25) Vachier Lagrave,M (2796)-Giri,A (2771) Stavanger 2017}) 11. axb5 {[%emt 0:07:21]} axb5 {[%emt 0:00:20]} 12. Rxa8 {[%emt 0:00:09]} Qxa8 {[%emt 0:00:18]} 13. Na3 {[%emt 0:00:27]} Bxe4 {[%emt 0:03:04]} 14. Bxe4 {[%emt 0:04:56]} Nxe4 {[%emt 0:00:05]} 15. Nxb5 {[%emt 0:16:45]} Qb7 {[%emt 0:03:01]} 16. Na3 {[%emt 0:19:41]} d5 {[%emt 0:03:27]} 17. Nb1 {[%emt 0:04:03]} O-O {[%emt 0:02:07]} 18. Nbd2 {[%emt 0:00:34]} Nef6 {[%emt 0:07:13]} 19. Qe2 {[%emt 0:04:30]} Nb6 {[%emt 0:05:40]} 20. Ne5 {[%emt 0:03:09]} Na4 {[%emt 0:03:04]} 21. Ndf3 {[%emt 0:00:34]} Nd7 {[%emt 0:12:57]} 22. Nxd7 {[%emt 0:04:15]} Qxd7 {[%emt 0:00:11]} 23. Ne5 {[%emt 0:00:55]} Qb7 {[%emt 0:03:05]} 24. h3 {[%emt 0:03:39]} Bd6 {[%emt 0:03:27]} 25. Ng4 {[%emt 0:01:50]} ({Besser ist} 25. f4 $15) 25... Rb8 $17 {[%emt 0:06:12]} 26. Qf3 {[%emt 0:17:19]} Qe7 {[%emt 0:14:47]} 27. Re2 {[%emt 0:01:34]} f5 {[%emt 0:02:50]} 28. Ne3 {[%emt 0:00:56]} Qg5 {[%emt 0:01:18]} 29. g3 {[%emt 0:00:31]} Rf8 {[%emt 0:01:59]} 30. h4 {[%emt 0:00:20]} Qg6 {[%emt 0:01:12]} 31. Nxd5 {[%emt 0:01:23]} f4 {[%emt 0:09:22]} 32. Bxf4 {[%emt 0:01:36]} Qf5 {[%emt 0:00:20]} 33. Ne3 {[%emt 0:02:37]} Qb1+ {[%emt 0:00:06]} 34. Kg2 {[%emt 0:00:25]} Bxf4 {[%emt 0:02:05]} 35. gxf4 {[%emt 0:00:44]} Nxb2 {[%emt 0:00:15]} 36. f5 {[%emt 0:02:30]} Nd3 {[%emt 0:01:48]} 37. Kh2 {[%emt 0:01:10]} Qb3 {[%emt 0:02:33]} 38. Qe4 {[%emt 0:01:05]} exf5 {[%emt 0:02:57]} 39. Nxf5 {[%emt 0:00:27]} Qb8+ {[%emt 0:00:26]} 40. Kg1 {[%emt 0:00:00]} Qb1+ {[%emt 0:00:00]} 41. Kh2 {[%emt 0:02:43]} Qb8+ {[%emt 0:02:45]} 42. Kg1 {[%emt 0:09:47]} Qb1+ {[%emt 0:01:30]} 43. Kh2 {[%emt 0:00:45]} Qb8+ {[%emt 0:00:20]} 44. Kg1 {[%emt 0:00:08]} Qb1+ {[%emt 0:00:31]} 1/2-1/2

[Event "WYCC 2018 O18"]
[Site "Halkidiki"]
[Date "2018.10.24"]
[Round "6"]
[White "Kouskoutis, Georgios-Alexandros"]
[Black "Brewer, Callum D"]
[Result "1-0"]
[ECO "A14"]
[WhiteElo "2296"]
[BlackElo "2056"]
[Annotator "NA"]
[PlyCount "77"]
[EventDate "2018.10.20"]
[EventType "swiss"]
[EventCountry "GRE"]
[SourceTitle "playchess.com"]
[Source "ChessBase"]
[SourceQuality "1"]
[TimeControl "40/5400+30:1800+30"]

1. c4 {[%emt 0:00:00]} e6 {[%emt 0:00:00]} 2. g3 {[%emt 0:00:00]} Nf6 {[%emt 0:00:00]} 3. Bg2 {[%emt 0:00:00]} d5 {[%emt 0:00:00]} 4. Nf3 {[%emt 0:00:00]} Be7 {[%emt 0:00:00]} 5. O-O {[%emt 0:00:05]} O-O {[%emt 0:00:00]} 6. b3 {[%emt 0:00:07]} c5 {[%emt 0:00:00]} 7. cxd5 {[%emt 0:00:50]} Nxd5 {[%emt 0:00:21]} 8. Bb2 {[%emt 0:00:32]} Nc6 {[%emt 0:01:36]} 9. Nc3 {[%emt 0:01:23]} Bf6 {[%emt 0:17:55]} 10. Qc1 {[%emt 0:10:57] LiveBook: 74 Games} Nxc3 {[%emt 0:11:12]} 11. Bxc3 {[%emt 0:00:22]} Nd4 {[%emt 0:00:12] A14: English Opening: 1...e6 with b3 by White} 12. Re1 {[%emt 0:10:20]} Qb6 {[%emt 0:12:03]} (12... Rb8 13. Nxd4 Bxd4 14. Qa3 a6 15. Bxd4 cxd4 16. Rac1 b6 17. Rc6 Bb7 18. Rd6 Qe7 19. Qb4 Bxg2 20. Kxg2 e5 21. Rc1 a5 22. Qa3 Rbc8 23. Rc4 b5 24. Rxc8 Rxc8 25. Rc6 Qb7 {0-1 (25) Skembris,S (2393)-Mastrovasilis,A (2497) Rio Achaea 2018}) 13. e3 {[%emt 0:04:01]} Nxf3+ {[%emt 0:00:25]} 14. Bxf3 {[%emt 0:00:05]} Bxc3 {[%emt 0:00:03]} 15. Qxc3 {[%emt 0:00:08]} Bd7 {[%emt 0:00:14]} 16. Red1 $146 {[%emt 0:15:02]} ({Predecessor:} 16. Rac1 Rac8 {½-½ (16) Sajtar,J-Kozma,J Podebrady 1956}) 16... Rfc8 {[%emt 0:18:25]} 17. d4 {[%emt 0:14:59]} cxd4 {[%emt 0:00:38]} 18. Qxd4 {[%emt 0:00:09]} Qxd4 {[%emt 0:00:17]} 19. Rxd4 $11 {[%emt 0:00:08]} Bc6 {[%emt 0:00:13]} 20. Bxc6 {[%emt 0:01:13]} Rxc6 {[%emt 0:00:02]} 21. Rad1 {[%emt 0:04:09]} Kf8 {[%emt 0:01:03]} 22. Rh4 {[%emt 0:01:19]} Rac8 {[%emt 0:23:33]} 23. Rxh7 {[%emt 0:04:46]} R8c7 {[%emt 0:02:15]} 24. Rd8+ {[%emt 0:04:47]} Ke7 {[%emt 0:00:37]} 25. Rg8 {[%emt 0:01:25]} Rc2 {[%emt 0:01:10]} 26. Rgxg7 {[%emt 0:01:13]} Kf8 {[%emt 0:00:02]} 27. a4 {[%emt 0:02:09]} Rb2 {[%emt 0:01:30]} 28. Rg4 {[%emt 0:05:00]} Rxb3 {[%emt 0:01:14]} 29. Rh8+ {[%emt 0:00:09]} Ke7 {[%emt 0:00:05]} 30. Rf4 {[%emt 0:00:15]} Rd7 {[%emt 0:02:13]} 31. h4 {[%emt 0:06:11]} b5 {[%emt 0:00:31]} 32. axb5 {[%emt 0:00:30]} Rxb5 {[%emt 0:00:30]} 33. h5 {[%emt 0:00:57]} a5 {[%emt 0:01:13]} 34. Kg2 {[%emt 0:06:13]} Rdd5 {[%emt 0:01:24]} 35. g4 {[%emt 0:00:46]} Rg5 {[%emt 0:00:46]} 36. Kh3 {[%emt 0:03:08]} Rb1 {[%emt 0:03:28]} 37. Rh7 {[%emt 0:01:11]} Rh1+ {[%emt 0:00:24]} 38. Kg2 {[%emt 0:00:23]} Rh4 {[%emt 0:00:42]} 39. Kg3 {[%emt 0:00:08]} 1-0

[Event "WYCC 2018 O18"]
[Site "Halkidiki"]
[Date "2018.10.24"]
[Round "6"]
[White "Lazov, Toni"]
[Black "Ayats Llobera, Gerard"]
[Result "1-0"]
[ECO "B42"]
[WhiteElo "2292"]
[BlackElo "2399"]
[Annotator "NA"]
[PlyCount "85"]
[EventDate "2018.10.20"]
[EventType "swiss"]
[EventCountry "GRE"]
[SourceTitle "playchess.com"]
[Source "ChessBase"]
[SourceQuality "1"]
[TimeControl "40/5400+30:1800+30"]

1. e4 {[%emt 0:00:00]} c5 {[%emt 0:00:00]} 2. Nf3 {[%emt 0:00:00]} e6 {[%emt 0:00:00]} 3. d4 {[%emt 0:00:49]} cxd4 {[%emt 0:00:00]} 4. Nxd4 {[%emt 0:00:07]} a6 {[%emt 0:00:00]} 5. Bd3 {[%emt 0:00:11]} Nf6 {[%emt 0:00:21]} 6. O-O {[%emt 0:00:25]} e5 {[%emt 0:00:03]} 7. Nb3 {[%emt 0:06:36] LiveBook: 52 Games B42: Sicilian: Kan Variation: 5 Bd3} Nc6 {[%emt 0:00:16]} 8. f4 {[%emt 0:02:22]} (8. c4 d6 9. Nc3 Be7 10. Be3 Ng4 11. Bd2 O-O 12. Be2 Nf6 13. Be3 a5 14. Nd2 Nd7 {½-½ (58) Zhigalko,S (2620)-Fedorov,A (2572) Minsk 2018}) 8... b5 $146 {[%emt 0:21:42]} ({Predecessor:} 8... d6 9. Nc3 Be7 10. Nd5 Nxd5 11. exd5 Nb4 12. Be4 f5 13. fxe5 fxe4 14. a3 Nxc2 15. Qxc2 dxe5 16. Qxe4 {0-1 (74) Ibrahimova,S (2184)-Pavlov,S (2452) Nakhchivan 2016}) 9. Nc3 {[%emt 0:02:40]} d6 {[%emt 0:10:20]} 10. a4 {[%emt 0:05:00]} bxa4 {[%emt 0:00:27]} 11. Rxa4 {[%emt 0:01:12]} Be7 {[%emt 0:22:16]} 12. Nd5 {[%emt 0:05:29]} exf4 {[%emt 0:03:27]} 13. Bxf4 {[%emt 0:05:22]} O-O {[%emt 0:02:57]} 14. Nxe7+ {[%emt 0:16:19]} Qxe7 {[%emt 0:03:19]} 15. Nd4 {[%emt 0:07:45]} Qa7 {[%emt 0:04:22]} 16. c3 {[%emt 0:06:10]} Ne5 {[%emt 0:00:45]} 17. Kh1 {[%emt 0:01:24]} Nfd7 {[%emt 0:07:02]} 18. Bc2 {[%emt 0:11:27]} Nc5 {[%emt 0:02:01]} 19. Ra2 {[%emt 0:10:20]} Qb7 {[%emt 0:00:04]} 20. Nf5 {[%emt 0:00:38]} Be6 {[%emt 0:02:30]} 21. Nxd6 {[%emt 0:01:43]} Qc6 {[%emt 0:04:31]} 22. Bxe5 {[%emt 0:00:49]} Bxa2 {[%emt 0:00:26]} 23. Nf5 {[%emt 0:02:23]} Rfe8 {[%emt 0:05:43]} 24. Bxg7 {[%emt 0:00:22]} Nxe4 {[%emt 0:00:16]} 25. Bd4 {[%emt 0:02:22]} Bd5 {[%emt 0:03:10]} 26. Qh5 {[%emt 0:03:27]} f6 {[%emt 0:05:54]} 27. Nh6+ {[%emt 0:04:33]} Kf8 {[%emt 0:00:31]} 28. Bxe4 {[%emt 0:00:49]} Rxe4 {[%emt 0:00:01]} 29. Bxf6 {[%emt 0:00:53]} Qe6 {[%emt 0:01:28]} 30. Bh4+ {[%emt 0:01:40]} Kg7 {[%emt 0:00:06]} 31. Qg5+ {[%emt 0:00:06]} Qg6 {[%emt 0:00:11]} 32. Qxd5 {[%emt 0:01:18]} Rae8 {[%emt 0:00:12]} 33. Nf5+ {[%emt 0:00:21]} Kh8 {[%emt 0:00:07]} 34. Bg3 {[%emt 0:01:19]} R4e6 {[%emt 0:00:51]} 35. Nd6 {[%emt 0:00:29]} R8e7 {[%emt 0:00:42]} 36. Qd4+ {[%emt 0:00:20]} Kg8 {[%emt 0:00:10]} 37. Nf5 {[%emt 0:00:30]} Re8 {[%emt 0:00:38]} 38. Nh4 {[%emt 0:00:11]} Qc2 {[%emt 0:00:15]} 39. Qg4+ {[%emt 0:00:10]} Kh8 {[%emt 0:00:01]} 40. Qd4+ {[%emt 0:00:00]} Kg8 {[%emt 0:00:00]} 41. Qg4+ {[%emt 0:05:13]} Kh8 {[%emt 0:00:16]} 42. Nf5 {[%emt 0:00:10]} Rg6 {[%emt 0:00:33]} 43. Qd4+ {[%emt 0:00:18]} 1-0

[Event "WYCC 2018 O18"]
[Site "Halkidiki"]
[Date "2018.10.24"]
[Round "6"]
[White "Le, Minh Hoang"]
[Black "Miciano, John Marvin"]
[Result "1/2-1/2"]
[ECO "A42"]
[WhiteElo "2271"]
[BlackElo "2361"]
[Annotator "NA"]
[PlyCount "117"]
[EventDate "2018.10.20"]
[EventType "swiss"]
[EventCountry "GRE"]
[SourceTitle "playchess.com"]
[Source "ChessBase"]
[SourceQuality "1"]
[TimeControl "40/5400+30:1800+30"]

1. d4 {[%emt 0:00:00]} g6 {[%emt 0:00:02]} 2. c4 {[%emt 0:00:00]} Bg7 {[%emt 0:00:30]} 3. Nc3 {[%emt 0:00:00]} d6 {[%emt 0:00:48]} 4. e4 {[%emt 0:00:05]} Nc6 {[%emt 0:01:17]} 5. Be3 {[%emt 0:01:23]} Nf6 {[%emt 0:00:30]} 6. Be2 {[%emt 0:05:43]} O-O {[%emt 0:02:23]} 7. d5 {[%emt 0:03:07]} Nb8 {[%emt 0:02:06] LiveBook: 3 Games E73: King's Indian: Averbakh Variation without 6...c5} (7... Ne5 8. f4 Neg4 9. Bd2 Nh6 10. Nf3 c6 11. O-O cxd5 12. cxd5 b5 13. Bd3 b4 14. Na4 Bd7 15. Kh1 {1-0 (62) Sokolov,I (2623)-Van Foreest,J (2615) Hoogeveen 2016}) 8. Nf3 {[%emt 0:00:20]} Ng4 {[%emt 0:10:21]} 9. Bd4 {[%emt 0:01:27]} e5 $146 {[%emt 0:03:15]} ({Predecessor:} 9... f6 10. h3 Ne5 11. b4 Nbd7 12. O-O Nxf3+ 13. Bxf3 c5 14. dxc6 bxc6 15. Be3 Ne5 {1-0 (30) Garcia Palomeras,M (1834)-Cecilia Aguado,F (1962) Llinars del Valles 2014}) 10. dxe6 $1 {[%emt 0:00:09]} fxe6 {[%emt 0:00:26]} 11. Bxg7 {[%emt 0:01:01]} Kxg7 {[%emt 0:00:07]} 12. h3 {[%emt 0:00:16]} Ne5 {[%emt 0:00:42]} 13. Nxe5 {[%emt 0:01:25]} dxe5 {[%emt 0:00:07]} 14. Qxd8 {[%emt 0:01:49]} Rxd8 {[%emt 0:00:05]} 15. Rd1 {[%emt 0:06:17]} Rxd1+ {[%emt 0:00:26]} 16. Bxd1 {[%emt 0:03:41]} a5 {[%emt 0:03:10]} 17. Ba4 {[%emt 0:01:33]} Na6 {[%emt 0:00:35]} 18. Ke2 {[%emt 0:00:46]} Kf7 {[%emt 0:01:37]} 19. Rd1 {[%emt 0:02:58]} Ke7 {[%emt 0:00:09]} 20. Ke3 {[%emt 0:00:14]} c6 {[%emt 0:01:53]} 21. f4 {[%emt 0:00:37]} exf4+ {[%emt 0:00:11]} 22. Kxf4 {[%emt 0:00:02]} Bd7 {[%emt 0:00:26]} 23. e5 {[%emt 0:02:06]} Rf8+ {[%emt 0:00:14]} 24. Ke3 {[%emt 0:04:02]} Rf5 {[%emt 0:00:56]} 25. g4 {[%emt 0:00:04]} Rxe5+ {[%emt 0:02:16]} 26. Kd4 {[%emt 0:03:06]} Rg5 {[%emt 0:16:29]} 27. Ne4 {[%emt 0:02:57]} c5+ {[%emt 0:01:06]} 28. Ke3 $1 {[%emt 0:00:10]} Bxa4 {[%emt 0:00:06]} 29. b3 {[%emt 0:00:01]} Re5 $1 {[%emt 0:00:24]} 30. bxa4 {[%emt 0:00:12]} Nb4 {[%emt 0:00:14]} 31. Rb1 {[%emt 0:02:02]} b6 {[%emt 0:00:22]} 32. Kf3 {[%emt 0:02:29]} g5 {[%emt 0:06:28]} 33. a3 {[%emt 0:15:34]} Nc2 {[%emt 0:00:07]} 34. Rxb6 {[%emt 0:00:05]} Nxa3 {[%emt 0:20:33]} 35. Rb7+ {[%emt 0:00:09]} Kd8 {[%emt 0:00:12]} 36. Nd6 {[%emt 0:01:18]} Re1 {[%emt 0:20:22]} 37. Rxh7 {[%emt 0:00:28]} Nc2 {[%emt 0:01:03]} 38. Nf7+ {[%emt 0:22:32]} Ke7 {[%emt 0:01:53]} 39. Nxg5+ {[%emt 0:01:05]} Kf6 {[%emt 0:00:15]} 40. h4 {[%emt 0:00:00]} Nd4+ {[%emt 0:00:00]} 41. Kf2 {[%emt 0:02:24]} Re2+ {[%emt 0:00:48]} 42. Kg3 {[%emt 0:01:15]} Rc2 {[%emt 0:03:07]} 43. Kf4 {[%emt 0:08:59]} Rf2+ {[%emt 0:00:14]} 44. Ke3 {[%emt 0:00:18]} Re2+ {[%emt 0:00:05]} 45. Kd3 {[%emt 0:00:14]} Rg2 {[%emt 0:00:46]} 46. Ne4+ {[%emt 0:04:05]} Ke5 {[%emt 0:01:26]} 47. Rh5+ {[%emt 0:01:35]} Kf4 {[%emt 0:00:06]} 48. Rxc5 {[%emt 0:02:05]} Nb3 $11 {[%emt 0:00:20]} 49. Rc6 {[%emt 0:03:03]} Nc1+ {[%emt 0:02:33]} 50. Kd4 {[%emt 0:00:09]} Ne2+ {[%emt 0:00:17]} 51. Kc5 {[%emt 0:00:18]} Kxe4 {[%emt 0:00:09]} 52. Rxe6+ {[%emt 0:00:06]} Kd3 {[%emt 0:01:24]} 53. Rg6 {[%emt 0:02:46]} Nc3 {[%emt 0:01:40]} 54. h5 {[%emt 0:00:45]} Nxa4+ {[%emt 0:00:07]} 55. Kb5 {[%emt 0:00:03]} Nc3+ {[%emt 0:00:15]} 56. Kxa5 {[%emt 0:00:06]} Kxc4 {[%emt 0:00:11]} 57. h6 {[%emt 0:00:29]} Rh2 {[%emt 0:00:40]} 58. Rc6+ {[%emt 0:02:05]} Kd5 {[%emt 0:00:47]} 59. Rxc3 {[%emt 0:00:16]} 1/2-1/2

[Event "WYCC 2018 O18"]
[Site "Halkidiki"]
[Date "2018.10.24"]
[Round "6"]
[White "Beukema, Jasper"]
[Black "Haug, Johannes"]
[Result "0-1"]
[ECO "A03"]
[WhiteElo "2256"]
[BlackElo "2391"]
[Annotator "NA"]
[PlyCount "52"]
[EventDate "2018.10.20"]
[EventType "swiss"]
[EventCountry "GRE"]
[SourceTitle "playchess.com"]
[Source "ChessBase"]
[SourceQuality "1"]
[TimeControl "40/5400+30:1800+30"]

1. f4 {[%emt 0:00:00]} d5 {[%emt 0:01:57]} 2. Nf3 {[%emt 0:00:00]} c5 {[%emt 0:01:25]} 3. d3 {[%emt 0:00:00]} Nf6 {[%emt 0:00:39]} 4. e3 {[%emt 0:00:02]} Nc6 {[%emt 0:01:45]} 5. Be2 {[%emt 0:00:08]} Qc7 {[%emt 0:10:04]} 6. O-O $11 {[%emt 0:18:27]} e6 {[%emt 0:11:52]} 7. c4 {[%emt 0:12:44]} d4 {[%emt 0:03:46]} 8. e4 {[%emt 0:00:58]} e5 {[%emt 0:02:30]} 9. Nxe5 {[%emt 0:19:09]} Nxe5 {[%emt 0:01:44]} 10. fxe5 {[%emt 0:00:05]} Nd7 {[%emt 0:08:03]} 11. Qa4 {[%emt 0:00:57]} Qxe5 {[%emt 0:20:10]} 12. Bf4 {[%emt 0:01:08]} Qf6 {[%emt 0:00:59]} 13. Na3 {[%emt 0:10:04]} Bd6 {[%emt 0:11:23]} 14. e5 {[%emt 0:07:43]} Bxe5 {[%emt 0:00:08]} 15. Bxe5 {[%emt 0:00:08]} Qxe5 {[%emt 0:00:05]} 16. Bg4 {[%emt 0:05:17]} Qc7 {[%emt 0:06:29]} 17. Nb5 {[%emt 0:13:51]} Qb6 {[%emt 0:00:29]} 18. Rae1+ {[%emt 0:01:06]} Kf8 {[%emt 0:00:13]} 19. Re6 {[%emt 0:01:00]} Qd8 {[%emt 0:01:34]} 20. Nd6 {[%emt 0:06:14]} Nf6 {[%emt 0:00:06]} 21. Re8+ {[%emt 0:00:33]} Nxe8 {[%emt 0:01:18]} 22. Nxf7 {[%emt 0:00:43]} Qe7 {[%emt 0:01:49]} 23. Nxh8+ {[%emt 0:00:37]} Nf6 {[%emt 0:00:49]} 24. Bxc8 {[%emt 0:00:32]} Rxc8 {[%emt 0:00:09]} 25. Qd1 {[%emt 0:00:26]} Kg8 {[%emt 0:00:46]} 26. Re1 {[%emt 0:00:27]} Qd7 {[%emt 0:00:26]} 0-1

[Event "WYCC 2018 O18"]
[Site "Halkidiki"]
[Date "2018.10.24"]
[Round "6"]
[White "Liska, Jiri"]
[Black "Stijve, Theo"]
[Result "1/2-1/2"]
[ECO "A04"]
[WhiteElo "2245"]
[BlackElo "2345"]
[Annotator "NA"]
[PlyCount "88"]
[EventDate "2018.10.20"]
[EventType "swiss"]
[EventCountry "GRE"]
[SourceTitle "playchess.com"]
[Source "ChessBase"]
[SourceQuality "1"]
[TimeControl "40/5400+30:1800+30"]

1. Nf3 {[%emt 0:00:00]} c5 {[%emt 0:00:12]} 2. c4 {[%emt 0:00:00]} Nc6 {[%emt 0:00:07]} 3. Nc3 {[%emt 0:00:55]} e5 {[%emt 0:00:08]} 4. g3 {[%emt 0:03:33]} g6 {[%emt 0:00:34]} 5. Bg2 {[%emt 0:00:45]} Bg7 {[%emt 0:00:09]} 6. O-O {[%emt 0:00:52]} Nge7 {[%emt 0:00:09]} 7. Rb1 {[%emt 0:02:14]} d6 {[%emt 0:03:43]} 8. a3 {[%emt 0:03:45]} a5 {[%emt 0:05:42] A37: Symmetrical English vs ...g6: 4 Bg2 Bg7 5 Nf3} 9. Ne1 {[%emt 0:08:12]} (9. d3 Rb8 10. Bd2 O-O 11. Qa4 Bd7 12. Rfc1 Na7 13. Qc2 b5 14. b4 cxb4 15. axb4 bxc4 16. bxa5 Rxb1 17. Rxb1 Qxa5 18. dxc4 Nac8 19. Qb3 {½-½ (74) Banusz,T (2621)-Bartel,M (2653) Katowice 2016}) 9... Be6 {[%emt 0:01:46]} 10. Nd5 {[%emt 0:04:03]} O-O {[%emt 0:04:19] LiveBook: 17 Games} 11. b3 {[%emt 0:06:12]} f5 $146 {[%emt 0:06:38]} ({Predecessor:} 11... Rb8 12. d3 b6 13. Nc2 Qd7 14. e4 Nd4 15. Nxd4 cxd4 16. Bd2 f5 {1-0 (36) Csaba,A (2230)-Molnar,L (2260) Hungary 1995}) 12. d3 {[%emt 0:04:35]} Bxd5 {[%emt 0:17:23]} 13. cxd5 {[%emt 0:00:32]} Nd4 {[%emt 0:00:08]} 14. a4 {[%emt 0:12:28]} f4 {[%emt 0:05:57]} 15. g4 {[%emt 0:05:53]} Qe8 {[%emt 0:11:51]} 16. e3 {[%emt 0:11:12]} f3 {[%emt 0:02:02]} 17. Nxf3 {[%emt 0:00:20]} Nxf3+ {[%emt 0:01:10]} 18. Bxf3 {[%emt 0:00:02]} Qf7 {[%emt 0:00:14]} 19. Bg2 $11 {[%emt 0:00:33]} Nxd5 {[%emt 0:00:56]} 20. Qc2 {[%emt 0:02:24]} Rab8 {[%emt 0:05:06]} 21. Bd2 {[%emt 0:07:52]} b6 {[%emt 0:00:54]} 22. Qc4 {[%emt 0:02:06]} Nc7 {[%emt 0:00:53]} 23. Qxf7+ {[%emt 0:05:00]} Rxf7 {[%emt 0:01:23]} 24. f4 {[%emt 0:04:08]} Rbf8 {[%emt 0:04:49]} 25. h4 {[%emt 0:02:21]} Re7 {[%emt 0:03:40]} 26. Rbe1 {[%emt 0:01:50]} d5 {[%emt 0:06:47]} 27. Kh2 {[%emt 0:01:29]} Bh6 {[%emt 0:04:40]} 28. Kg3 {[%emt 0:03:49]} Rfe8 {[%emt 0:05:10]} 29. h5 {[%emt 0:02:50]} exf4+ {[%emt 0:03:35]} 30. exf4 {[%emt 0:00:07]} Re2 {[%emt 0:00:14]} 31. Rxe2 {[%emt 0:01:18]} Rxe2 {[%emt 0:00:01]} 32. Rf2 {[%emt 0:00:15]} Rxf2 {[%emt 0:01:46]} 33. Kxf2 {[%emt 0:00:02]} Kf7 {[%emt 0:00:20]} 34. Kg3 {[%emt 0:02:05]} Ke7 {[%emt 0:01:11]} 35. Bc3 {[%emt 0:01:16]} Ke6 {[%emt 0:01:37]} 36. g5 {[%emt 0:01:15]} Bf8 {[%emt 0:00:06]} 37. Bh3+ {[%emt 0:00:50]} Kf7 {[%emt 0:00:33]} 38. f5 {[%emt 0:00:41]} d4 {[%emt 0:01:33]} 39. Bd2 {[%emt 0:00:11]} Nd5 {[%emt 0:01:14]} 40. Bg2 {[%emt 0:00:00]} Bd6+ {[%emt 0:00:00]} 41. Kf2 {[%emt 0:16:34]} Ne3 {[%emt 0:08:27]} 42. fxg6+ {[%emt 0:15:02]} hxg6 {[%emt 0:01:32]} 43. hxg6+ {[%emt 0:00:14]} Kxg6 {[%emt 0:00:27]} 44. Bxe3 {[%emt 0:00:09]} dxe3+ {[%emt 0:00:11]} 1/2-1/2